Cogmind - Beta 16 @@@ ROGUE MODE // 2025.11.18 @ 17:03:16 Player: Miles Result: Destroyed by D-53 Grenadier with Mini Grenade Launcher Performance ------------- Evolutions (0) 0 Regions Visited (2) 400 Robots Destroyed (13) 65 Value Destroyed (195) 195 Prototype IDs (0) 0 Alien Tech Used (0) 0 Bonus (0) 0 TOTAL SCORE: 660 Bonus ------- None Cogmind --------- Core Integrity 0/250 Matter 300/300 Energy 100/100 System Corruption 0% Temperature Cool (0) Movement Core (100) Ox1 Location -10/Mines Parts ------- > --- POWER (1) -------- (None) > --- PROPULSION (2) --- (None) > --- UTILITY (2) ------ Small Storage Unit > --- WEAPON (2) ------- (None) > --- INVENTORY (8) ---- Light Ion Engine Wheel Small Battery (100) Improved Terrain Scanner Medium Laser Beam Rifle Peak State ------------ > --- POWER ------------ Light Ion Engine > --- PROPULSION ------- Wheel Wheel > --- UTILITY ---------- Small Storage Unit Improved Terrain Scanner > --- WEAPON ----------- Small Laser Light Assault Rifle > --- INVENTORY -------- Light Ion Engine Wheel Wheel Compact Wheel Compact Wheel Seismic Detector [Rating: 9] Favorites ----------- Power Light Ion Engine Engine Light Ion Engine Propulsion Wheel Wheel Wheel Utility Small Storage Unit Device Improved Terrain Scanner Storage Small Storage Unit Protection Light Armor Plating Weapon Light Assault Rifle Energy Gun Small Laser Ballistic Gun Light Assault Rifle Build | -11 -10 -10 ------- Run | Yrd Mat Min Slots Evolved . | . . . Power . | . . . Propulsion . | . . . Utility . | . . . Weapon . | . . . Parts Attached 16 | 7 3 6 Power 2 | 1 . 1 Engine 2 | 1 . 1 Core . | . . . Reactor . | . . . Propulsion 7 | 2 1 4 Treads . | . . . Leg . | . . . Wheel 7 | 2 1 4 Hover . | . . . Flight . | . . . Utility 4 | 2 1 1 Device 1 | 1 . . Storage 1 | 1 . . Processor . | . . . Hackware . | . . . Protection 2 | . 1 1 Artifact . | . . . Weapon 3 | 2 1 . Energy Gun 1 | 1 . . Energy Cannon . | . . . Ballistic Gun 2 | 1 1 . Ballistic Cannon . | . . . Launcher . | . . . Special Weapon . | . . . Impact Weapon . | . . . Slashing Weapon . | . . . Piercing Weapon . | . . . Special Melee Weapon . | . . . Unidentified Prototypes . | . . . Parts Lost 9 | . 1 8 Power 1 | . . 1 Propulsion 5 | . 1 4 Utility 1 | . . 1 Weapon 2 | . . 2 Highest Loss Streak 8 | . 1 8 To Critical Strikes . | . . . Average Backups 6 | 3 7 7 Power . | . 1 1 Propulsion 3 | 2 5 3 Utility 1 | . 1 2 Weapon . | . . 1 Tool/Special . | . . . Unused Backups 6 | 1 1 4 Power 1 | . . 1 Propulsion 1 | 1 . . Utility 2 | . 1 1 Weapon 2 | . . 2 Tool/Special . | . . . Average Slot Usage (%) 98 | . 100 95 Engine 13 | . 14 13 Wheel 27 | . 28 26 Device 3 | . 6 . Storage 14 | . 14 14 Protection 10 | . 8 13 Energy Gun 3 | . 5 . Ballistic Gun 24 | . 22 27 Peak Build Rating 9 | 9 9 8 Average Rating 7 | 6 8 7 On Entrance 5 | . 9 7 Avg Prop Armor Cover (%) . | . . . Naked Turns . | . . . Heaviest Build 15 | 11 13 15 Greatest Support 26 | 20 20 26 Greatest Overweight (x) 1 | . . 1 Average Overweight (x) . | . . . Largest Inventory Capacity 8 | 8 8 8 Average Capacity 7 | 7 8 8 Most Carried 8 | 7 8 8 Average Carried 6 | 3 7 7 Final Capacity 8 | 8 8 8 Final Carried 7 | 7 7 6 Class Distribution -------------------- 100% | Mutant Dominant Class ---------------- Mutant | -10/Materials Mutant | -10/Mines Resources | -11 -10 -10 ----------- Run | Yrd Mat Min Matter Collected 391 | 289 44 58 Remotely . | . . . Salvage Created 383 | 176 129 78 Parts 20 | 9 4 7 Haulers Intercepted . | . . . Recyclers Shooed . | . . . Parts Field Recycled . | . . . Retrieved Matter . | . . . Parts Self-Destructed . | . . . Prevented . | . . . Parts Restored . | . . . Kills | -11 -10 -10 ------- Run | Yrd Mat Min Combat Hostiles Destroyed 7 | . 5 2 Guns 7 | . 5 2 Classes Destroyed 5 | 3 2 . Worker 2 | 2 . . Tunneler 3 | 3 . . Recycler 1 | 1 . . Swarmer 3 | . 3 . Grunt 4 | . 2 2 Best Kill Streak 3 | 2 3 2 Combat Bots Only 3 | . 3 2 Max Kills in Single Turn 1 | 1 1 1 Gunslinging . | . . . Exploded . | . . . Melee . | . . . Uniques/NPCs Destroyed . | . . . Combat | -11 -10 -10 -------- Run | Yrd Mat Min Hostile Shots Fired 63 | . 38 25 Missed 14 | . 11 3 Hits 49 | . 27 22 Projectile 49 | . 27 22 AOE 17 | . . 17 Damage Taken 989 | . 294 695 Core 252 | . 28 224 Absorbed by Shields . | . . . Core Remaining (%) 100 | 100 . . Volleys Fired 47 | 19 18 10 Largest 2 | 2 2 2 Hottest 60 | 60 60 40 Shots Fired 94 | 38 36 20 Gun 94 | 38 36 20 Cannon . | . . . Launcher . | . . . Special . | . . . Kinetic 63 | 19 24 20 Thermal 31 | 19 12 . Explosive . | . . . Electromagnetic . | . . . Robot Hit Streak 8 | 8 6 5 Robot Miss Streak 4 | 2 4 3 Penetration Max . | . . . Secondary Targets . | . . . Shots Hit Robots 57 | 24 20 13 Core Hits 21 | 9 7 5 Critical Kills . | . . . Critical Parts Destroyed 1 | . 1 . Critical Strikes 1 | . 1 . Destroy 1 | . 1 . Melee Attacks . | . . . Impact . | . . . Slashing . | . . . Piercing . | . . . Sneak Attacks . | . . . Combat Hostiles . | . . . Follow-up Attacks . | . . . Damage Inflicted 581 | 245 230 106 Guns 559 | 245 208 106 Cannons . | . . . Explosions . | . . . Melee . | . . . Ramming 22 | . 22 . Kinetic 291 | 80 105 106 Thermal 268 | 165 103 . Explosive . | . . . Electromagnetic . | . . . Impact . | . . . Slashing . | . . . Piercing . | . . . Highest Corruption . | . . . Average Corruption . | . . . Corruption Purged . | . . . Corruption Blocked . | . . . Overload Shots . | . . . Overflow Damage . | . . . Projectiles . | . . . Explosions . | . . . Melee . | . . . Knockbacks . | . . . Impact . | . . . Kinetic . | . . . Secondary . | . . . Self-Inflicted Damage 10 | . 10 . Shots . | . . . Rammed 4 | . 4 . Targets Rammed 4 | . 4 . Kicked . | . . . Crushed . | . . . Highest Temperature 126 | 40 126 18 Average Temperature 27 | 18 43 7 Received Heat Transfer 84 | . 72 12 Siege Activations . | . . . Martial Activations . | . . . Shielding Activations . | . . . Robots Disrupted . | . . . Combat Hostiles . | . . . Robots Corrupted . | . . . Combat Hostiles . | . . . Parts Fried . | . . . Impact Corruptions . | . . . Robots Melted . | . . . Combat Hostiles . | . . . Parts Melted 1 | . 1 . Heat Transferred 600 | 375 225 . Parts Sabotaged . | . . . Parts Stolen . | . . . Parts Stripped . | . . . Power Chain Reactions . | . . . Alert | -11 -10 -10 ------- Run | Yrd Mat Min Maximum Alert Level . | . . . Low Security (%) 100 | 100 100 100 Level 1 . | . . . Level 2 . | . . . Level 3 . | . . . Level 4 . | . . . Level 5 . | . . . High Security . | . . . Max Security . | . . . Peak Influence 105 | 5 105 50 Initial 28 | . . 28 Average 12 | 1 20 12 Influence Increases 260 | 30 180 50 Destroy 0b10 Robot/C 140 | . 100 40 Destroy 0b10 Robot/NC 30 | 30 . . Destroy Leader 30 | . 20 10 Partial Spotted 30 | . 30 . Lose Combat Pursuer 30 | . 30 . Influence Decreases 260 | 30 105 125 Entered New Map 47 | . . 47 Time Decay 203 | 30 95 78 Lost Part 10 | . 10 . Squads Dispatched 4 | . 3 1 Investigation 1 | . . 1 Extermination . | . . . Reinforcement 3 | . 3 . Assault . | . . . Garrison . | . . . Intercept . | . . . Searches Triggered . | . . . Construction Impeded . | . . . Haulers Reinforced . | . . . Active Scanning Responses . | . . . Cargo Convoy Interrupts . | . . . Stealth | -11 -10 -10 --------- Run | Yrd Mat Min Distress Signals 2 | . 2 . Communications Jammed . | . . . Distress Signals . | . . . Times Spotted 24 | . 17 7 Peak Tracking Total 5 | . 5 3 Tactical Retreats 1 | . 1 . Traps | -11 -10 -10 ------- Run | Yrd Mat Min Traps Triggered 1 | . 1 . Indirectly . | . . . Trap Hack Attempts . | . . . Triggered . | . . . Disarmed . | . . . Reprogrammed . | . . . Reused . | . . . Traps Extracted . | . . . Installed . | . . . Triggered . | . . . Machines | -11 -10 -10 ---------- Run | Yrd Mat Min Machines Disabled . | . . . Max in Single Turn . | . . . Machines Repaired . | . . . Machines Dismantled . | . . . Machines Sabotaged . | . . . Overloaded Fab Kills . | . . . Hacking | -11 -10 -10 --------- Run | Yrd Mat Min Machines Accessed 2 | . 1 1 Terminals 2 | . 1 1 Fabricators . | . . . Repair Stations . | . . . Recycling Units . | . . . Scanalyzers . | . . . Garrison Access . | . . . Total Hacks 4 | . 1 3 Successful 2 | . 1 1 Failed 2 | . . 2 Catastrophic . | . . . Database Lockouts . | . . . Manual 1 | . 1 . Terminals 4 | . 1 3 Fabricators . | . . . Repair Stations . | . . . Recycling Units . | . . . Scanalyzers . | . . . Garrison Access . | . . . Terminal Hacks 2 | . 1 1 Unreport Threat 1 | . 1 . Zone Layout 1 | . . 1 Fabricator Hacks . | . . . Repair Station Hacks . | . . . Recycling Unit Hacks . | . . . Scanalyzer . | . . . Garrison Access Hacks . | . . . Unauthorized Hacks . | . . . Terminals . | . . . Fabricators . | . . . Repair Stations . | . . . Recycling Units . | . . . Scanalyzers . | . . . Garrison Access . | . . . Data Cores Recovered . | . . . Used . | . . . Hacking Detections 1 | . . 1 Full Trace Events 1 | . . 1 Feedback Events . | . . . Feedback Blocked . | . . . Robot Schematics Acquired . | . . . Robots Built . | . . . Authchips . | . . . Time . | . . . Total Robot Build Rating . | . . . Part Schematics Acquired . | . . . Parts Built . | . . . Authchips . | . . . Time . | . . . Total Part Build Rating . | . . . Part Studies Acquired . | . . . Parts Repaired . | . . . Time . | . . . Parts Recycled . | . . . Recycled Matter . | . . . Retrieved Matter . | . . . Retrieved Components . | . . . Parts Scanalyzed . | . . . Part Schematics Acquired . | . . . Parts Damaged . | . . . Bothacking | -11 -10 -10 ------------ Run | Yrd Mat Min Used RIF Installer . | . . . Robots Hacked . | . . . Non-combat . | . . . Combat . | . . . Robot Hacks Applied . | . . . Relay Couplers Released . | . . . Fabnet Peak Effective % . | . . . Robots Rewired . | . . . Allies Hacked . | . . . Hacks Repelled . | . . . Allies | -11 -10 -10 -------- Run | Yrd Mat Min Total Allies . | . . . Largest Group . | . . . Highest-Rated Group . | . . . Highest-Rated Ally . | . . . Total Orders . | . . . Ally Attacks . | . . . Total Damage . | . . . Kills . | . . . Allies Corrupted . | . . . Allies Melted . | . . . Intel | -11 -10 -10 ------- Run | Yrd Mat Min Active Infowar (turns) 197 | 53 144 . Terrain 197 | 53 144 . Robot Analysis Total . | . . . Derelict Logs Recovered . | . . . Drone Launches . | . . . Drone Recoveries . | . . . Exploration | -11 -10 -10 ------------- Run | Yrd Mat Min Turns Passed 848 | 229 348 271 Spaces Moved 839 | 197 357 285 Core 27 | 15 . 12 Treads . | . . . Legs . | . . . Wheels 812 | 182 357 273 Hover . | . . . Flight . | . . . Fastest Speed 50 | 50 80 80 Average Speed 79 | 77 80 81 Slowest Speed 100 | 80 80 100 Overloaded Moves . | . . . Propulsion Burnouts . | . . . Robots Hopped . | . . . Potential Cave-ins . | . . . Cave-ins Triggered . | . . . Exploration Rate (%) 27 | 7 35 40 Regions Visited 2 Branch Regions 1 Pre-discovered Areas . | . . . Known Exits Taken . | . . . Unknown Exits Taken 2 | 1 1 . Scrap Searched . | . . . Spaces Dug . | . . . Terrain Destroyed . | . . . Melee . | . . . Projectile . | . . . AOE . | . . . Terrain Rammed . | . . . Walls Destroyed . | . . . Machines Disabled . | . . . Actions | -11 -10 -10 --------- Run | Yrd Mat Min Total 935 | 238 388 309 Wait 3 | . . 3 Move 837 | 196 356 285 Hop . | . . . Pick Up 21 | 15 4 2 Fast Attach . | . . . Attach 10 | 7 1 2 Detach . | . . . Swap 6 | . 2 4 Drop 7 | 1 3 3 Fire 47 | 19 18 10 Melee . | . . . Ram 4 | . 4 . Kick . | . . . Crush . | . . . Escape Stasis . | . . . Rewire . | . . . Trap . | . . . Miscellaneous . | . . . Route ------- -11/Scrapyard -10/Materials -10/Mines (discovered 1 exit: [*Mat]) History --------- Turn | Location | Event 11 | -11/Scrapyard | Discovered new exit (range 15) 230 | -11/Scrapyard | Entered Materials 307 | -10/Materials | Build established: Mutant 397 | -10/Materials | Discovered new exit (range 11) 578 | -10/Materials | Entered Mines 580 | -10/Mines | Discovered new exit (range 15) 584 | -10/Mines | Joined a pair of Derelicts in attacking an 0b10 outpost 797 | -10/Mines | Assembled infested the area 830 | -10/Mines | Core integrity fell below 50% 840 | -10/Mines | Core integrity fell below 20% 849 | -10/Mines | Destroyed by D-53 Grenadier with Mini Grenade Launcher Last Messages --------------- 00823_ 1A-WEO(g) destroyed. 00823_ R-06 Scavenger destroyed. 00826_ U-05 Engineer lays Concrete. 00829_ R-06 Scavenger destroyed. 00829_ U-05 Engineer lays Concrete. 00829_ Wheel destroyed. 00830_ U-05 Engineer lays Concrete. 00831_ Lgt. Assault Rifle destroyed. 00831_ Com. Wheel destroyed. 00832_ U-05 Engineer lays Concrete. 00833_ Ion Engine destroyed. 00833_ Wheel destroyed. 00834_ U-05 Engineer lays Concrete. 00837_ Lgt. Assault Rifle destroyed. 00837_ Com. Wheel destroyed. 00838_ The unstable cave ceiling collapses. 00838_ U-05 Engineer lays Concrete. 00839_ K-01 Serf destroyed. 00839_ U-05 Engineer lays Concrete. 00840_ The unstable cave ceiling collapses. Map ----- +----------------------------------------------------+ | ???????????????????? | | ??????????????????????? " | | ??????????????????????????#"%" # # | | ???????????????????????????#" ## # | | ???????????????????????????# [ ### # | | ???????????????????????????# = ### # | | ???????????????????????????# ! ## | | ???????????????????????????# ! ## | | ???????????????????????????##=% # ##### | | ???????????????????????????## # ##???? | | ???????????????????????????# #????? | | ???????????????????????????# ##????? | | ??????????????????????????### ## ###?????? | | ??????????????????????????# #####???????? | | ??????????????????????????# #???????????? | | ??????????????????????????# *d ##??????????? | | ??????????????????????????# d #####??????? | | ???????????#######????????# # $ #? | | ???????????# ##???????# #### ##### ####??? | | ???????????# T#??????## ##?## ##???????????? | | ???????????# """ ######### #??####????????????? | | ???????????# """ ###! ## #??????????????????? | | ???????????# """ ##"|!=# #??????????????????? | | ???????????# ##[% + ##?????????????????? | | ???????????### ####% + ##????????????????? | | ?????????????#=#??#" ! # @ ##???????????????? | | ???###########%##?##!!## #???????????????? | | ???# =*[#??##### #???????????????? | | ???# ####### = #???????????????? | | ???# """ """ ##???????????????? | | ???# """ """ [ ##????????????????? | | ???# """ " *!<*####### ##?????????????????? | | ???# %*%%=% #?????## ##?????????????????? | | ???# """ "" #??????## ##????????????????? | | ???# """ """ #???????# #????????????????? | | ???# """ "" #???????## #????????????????? | | ???# #????????# ##????????????????? | | ???# """ """ #????????## ###?????????????????? | | ???# """ """ #?????????####???????????????????? | | ???# """ """ #????????????????????????????????? | | ????? #????????????????????????????????? | | ?????############????????????????????????????????? | | ?????????????????????????????????????????????????? | | ?????????????????????????????????????????????????? | | ?????????????????????????????????????????????????? | | | | | | | | | | | +----------------------------------------------------+ Best States ------------- Heat Dissipation 25 Energy Generation 10 Energy Capacity 250 Matter Stores 300 Matter Capacity 300 Sight Range 16 Terrain Scan Range 16 Terrain Scan Density 10 Armor Coverage 150 Evasion (%) 50 Item Schematics ----------------- None Robot Schematics ------------------ None Fabricated ------------ Nothing Repaired ---------- Nothing Studied --------- None Alien Tech Used ----------------- None Achievements -------------- Ghost 'Em Challenges ------------ None Game ------ Seed ZipAnalysisThrower Manual? 0 Play Time 00:10:34 Cumulative 26.1 hours Start 2025.11.18 @ 16:55:12 End 2025.11.18 @ 17:03:16 Sessions 1 Manual Loads 0 Difficulty Rogue Special Mode None Game No. 53 Rogue 53 Adventurer 0 Explorer 0 Win Type - Total 0 Types 0/0/0/0/0/0/0/0/0/0 Lore% 6 Gallery% 23 Achievement% 13 Wizard Run 0 Options --------- Layout 1 ASCII 0 Keyboard 0 Movement Mouse Keybinds 0 Fullscreen 1 Font 24/Smallcaps Map View 50x35 Zoom Use 0% Tactical HUD 1 Map Filters NONE Filters NONE Steam 1 RUN: 97de86ef-3608-4209-978e-9231c8fb5679